[Event "Live Chess"]
[Site "Chess.com"]
[Date "2023.05.20"]
[Round "-"]
[White "Hussamalhaidar"]
[Black "Stanbad1"]
[Result "0-1"]
[WhiteElo "1006"]
[BlackElo "2392"]
[TimeControl "300"]
[EndTime "14:52:03 PDT"]
[Termination "Stanbad1 won on time"]

1. b3 {[%clk 0:04:57.5]} 1... c5 {[%clk 0:04:59.2]} 2. Bb2 {[%clk 0:04:55.3]}
2... Nc6 {[%clk 0:04:59.1]} 3. e3 {[%clk 0:04:53.2]} 3... Nf6 {[%clk 0:04:58.4]}
4. Nf3 {[%clk 0:04:50.5]} 4... e6 {[%clk 0:04:57.6]} 5. Bb5 {[%clk 0:04:42.6]}
5... d5 {[%clk 0:04:52.3]} 6. O-O {[%clk 0:04:38.2]} 6... Bd7 {[%clk 0:04:50]}
7. d3 {[%clk 0:04:35.9]} 7... Bd6 {[%clk 0:04:46.8]} 8. Bxc6 {[%clk 0:04:28.7]}
8... Bxc6 {[%clk 0:04:45.1]} 9. Ne5 {[%clk 0:04:27.3]} 9... Rc8 {[%clk
0:04:42.9]} 10. f4 {[%clk 0:04:26.4]} 10... O-O {[%clk 0:04:39.6]} 11. Nd2
{[%clk 0:04:25]} 11... Ne8 {[%clk 0:04:35.8]} 12. Ndf3 {[%clk 0:04:20.9]} 12...
f6 {[%clk 0:04:34.5]} 13. Nxc6 {[%clk 0:04:14.6]} 13... Rxc6 {[%clk 0:04:34.4]}
14. Qe1 {[%clk 0:04:05.8]} 14... Rc8 {[%clk 0:04:28.6]} 15. Qh4 {[%clk
0:03:53.4]} 15... b5 {[%clk 0:04:15.5]} 16. Rf2 {[%clk 0:03:45.6]} 16... c4
{[%clk 0:04:13.5]} 17. dxc4 {[%clk 0:03:35]} 17... bxc4 {[%clk 0:04:11]} 18. Nd4
{[%clk 0:03:27.7]} 18... Qd7 {[%clk 0:04:08.1]} 19. Raf1 {[%clk 0:03:07]} 19...
c3 {[%clk 0:04:04.5]} 20. Bc1 {[%clk 0:02:54.7]} 20... Bc5 {[%clk 0:04:02.4]}
21. f5 {[%clk 0:02:48.9]} 21... Bxd4 {[%clk 0:03:59.6]} 22. Qxd4 {[%clk
0:02:34.9]} 22... e5 {[%clk 0:03:57.2]} 23. Qh4 {[%clk 0:02:20.3]} 23... Nd6
{[%clk 0:03:54.8]} 24. Rf3 {[%clk 0:01:53.1]} 24... Ne4 {[%clk 0:02:59.3]} 25.
Rh3 {[%clk 0:01:45.3]} 25... h6 {[%clk 0:02:54.6]} 26. Rd1 {[%clk 0:01:27.6]}
26... Qb5 {[%clk 0:02:49]} 27. Ba3 {[%clk 0:01:01.4]} 27... Rfd8 {[%clk
0:02:44.1]} 28. Be7 {[%clk 0:00:53.7]} 28... Rd7 {[%clk 0:02:26.9]} 29. Ba3
{[%clk 0:00:40.8]} 29... Qe2 {[%clk 0:02:23.9]} 30. Qe1 {[%clk 0:00:18.1]} 30...
Qxc2 {[%clk 0:02:20.9]} 31. Rxd5 {[%clk 0:00:14.8]} 31... Rxd5 {[%clk
0:02:18.1]} 32. Rxh6 {[%clk 0:00:12.9]} 32... Rd1 {[%clk 0:02:13.8]} 33. Rh8+
{[%clk 0:00:09.6]} 33... Kxh8 {[%clk 0:02:11.5]} 0-1

[Event "Live Chess"]
[Site "Chess.com"]
[Date "2023.05.20"]
[Round "-"]
[White "CameronM1234"]
[Black "sebmoran1"]
[Result "0-1"]
[WhiteElo "1115"]
[BlackElo "1368"]
[TimeControl "300"]
[EndTime "14:52:21 PDT"]
[Termination "sebmoran1 won on time"]

1. e4 {[%clk 0:04:58.6]} 1... c5 {[%clk 0:04:58.4]} 2. Nf3 {[%clk 0:04:56.9]}
2... Nc6 {[%clk 0:04:57.5]} 3. d4 {[%clk 0:04:56]} 3... cxd4 {[%clk 0:04:57.4]}
4. Nxd4 {[%clk 0:04:55.5]} 4... Nf6 {[%clk 0:04:56.3]} 5. Nc3 {[%clk 0:04:53.3]}
5... e6 {[%clk 0:04:54.6]} 6. Bf4 {[%clk 0:04:39.5]} 6... Bc5 {[%clk 0:04:49.2]}
7. Ndb5 {[%clk 0:04:29.1]} 7... d6 {[%clk 0:04:44.9]} 8. Nxd6+ {[%clk
0:04:18.3]} 8... Bxd6 {[%clk 0:04:43.3]} 9. Bxd6 {[%clk 0:04:17.5]} 9... Ne7
{[%clk 0:04:32.5]} 10. Nb5 {[%clk 0:04:13.6]} 10... O-O {[%clk 0:04:27.6]} 11.
Nc7 {[%clk 0:03:53.9]} 11... Nxe4 {[%clk 0:04:08.8]} 12. Nxa8 {[%clk 0:03:18.7]}
12... Nxd6 {[%clk 0:03:55.9]} 13. Bd3 {[%clk 0:02:32.2]} 13... b6 {[%clk
0:03:52.7]} 14. Nxb6 {[%clk 0:02:13.1]} 14... axb6 {[%clk 0:03:52.6]} 15. Qh5
{[%clk 0:02:11.1]} 15... g6 {[%clk 0:03:47.1]} 16. Qe5 {[%clk 0:01:49.9]} 16...
Bb7 {[%clk 0:03:37.4]} 17. O-O {[%clk 0:01:37.3]} 17... Ndf5 {[%clk 0:03:32.8]}
18. Rfd1 {[%clk 0:01:08.2]} 18... Qc8 {[%clk 0:03:24.9]} 19. g4 {[%clk
0:00:56.1]} 19... Nh4 {[%clk 0:03:09.6]} 20. Be4 {[%clk 0:00:40.6]} 20... Nf3+
{[%clk 0:03:03.3]} 21. Bxf3 {[%clk 0:00:36.5]} 21... Bxf3 {[%clk 0:03:03.2]} 22.
Rd6 {[%clk 0:00:25.1]} 22... Bxg4 {[%clk 0:02:57.2]} 23. Rxb6 {[%clk 0:00:18.9]}
23... Qxc2 {[%clk 0:02:52.1]} 24. Rb8 {[%clk 0:00:13.6]} 24... Bf5 {[%clk
0:02:33.7]} 25. Rxf8+ {[%clk 0:00:12]} 25... Kxf8 {[%clk 0:02:33.6]} 26. Re1
{[%clk 0:00:09.7]} 26... Qc4 {[%clk 0:02:20.3]} 27. Qh8+ {[%clk 0:00:04.5]}
27... Ng8 {[%clk 0:02:15.8]} 28. Qxh7 {[%clk 0:00:03.7]} 28... Qg4+ {[%clk
0:02:13.5]} 29. Kf1 {[%clk 0:00:02.3]} 29... Bd3+ {[%clk 0:02:11.4]} 30. Re2
{[%clk 0:00:00.8]} 30... Qxe2+ {[%clk 0:02:09.8]} 31. Kg1 {[%clk 0:00:00.3]}
31... Qg4+ {[%clk 0:02:08.5]} 0-1

[Event "Live Chess"]
[Site "Chess.com"]
[Date "2023.05.20"]
[Round "-"]
[White "FailsGambits"]
[Black "Singapourfeuj"]
[Result "1-0"]
[WhiteElo "1336"]
[BlackElo "2234"]
[TimeControl "300"]
[EndTime "14:52:23 PDT"]
[Termination "FailsGambits won by checkmate"]

1. e4 {[%clk 0:04:59.8]} 1... e6 {[%clk 0:04:58.3]} 2. Nf3 {[%clk 0:04:59.2]}
2... d5 {[%clk 0:04:55.5]} 3. exd5 {[%clk 0:04:59.1]} 3... exd5 {[%clk
0:04:53.7]} 4. d4 {[%clk 0:04:59]} 4... Bd6 {[%clk 0:04:52.6]} 5. Nc3 {[%clk
0:04:57.8]} 5... Ne7 {[%clk 0:04:48.4]} 6. g3 {[%clk 0:04:54.8]} 6... Bg4 {[%clk
0:04:47]} 7. Bg2 {[%clk 0:04:53.5]} 7... c6 {[%clk 0:04:46.2]} 8. h3 {[%clk
0:04:52.4]} 8... Bh5 {[%clk 0:04:41.9]} 9. O-O {[%clk 0:04:49.7]} 9... Nd7
{[%clk 0:04:39.6]} 10. Re1 {[%clk 0:04:42.1]} 10... Qc7 {[%clk 0:04:33.1]} 11.
Re3 {[%clk 0:04:16]} 11... O-O-O {[%clk 0:04:30.1]} 12. a4 {[%clk 0:04:07.4]}
12... Rhe8 {[%clk 0:04:25.5]} 13. a5 {[%clk 0:04:00]} 13... Nf5 {[%clk
0:04:21.6]} 14. Rxe8 {[%clk 0:03:56.3]} 14... Rxe8 {[%clk 0:04:20.5]} 15. g4
{[%clk 0:03:52.8]} 15... Bg6 {[%clk 0:04:07.2]} 16. gxf5 {[%clk 0:03:49.8]}
16... Bxf5 {[%clk 0:04:04.9]} 17. Be3 {[%clk 0:03:29.3]} 17... f6 {[%clk
0:04:00.9]} 18. a6 {[%clk 0:03:26.3]} 18... b6 {[%clk 0:03:59.6]} 19. Nh4 {[%clk
0:03:09.2]} 19... Be6 {[%clk 0:03:56.8]} 20. Nf3 {[%clk 0:02:59.9]} 20... g5
{[%clk 0:03:55.6]} 21. Ra3 {[%clk 0:02:30.5]} 21... h5 {[%clk 0:03:54.4]} 22.
Nb5 {[%clk 0:02:01]} 22... cxb5 {[%clk 0:03:50]} 23. Rc3 {[%clk 0:02:00.1]}
23... Nc5 {[%clk 0:03:47.5]} 24. dxc5 {[%clk 0:01:58.6]} 24... bxc5 {[%clk
0:03:46.2]} 25. Nd4 {[%clk 0:01:47.6]} 25... Bd7 {[%clk 0:03:41]} 26. Bxd5
{[%clk 0:01:34.5]} 26... Bxh3 {[%clk 0:03:26.9]} 27. Nxb5 {[%clk 0:01:23.7]}
27... Bg4 {[%clk 0:03:25.5]} 28. Nxc7 {[%clk 0:01:19.6]} 28... Bxd1 {[%clk
0:03:23.6]} 29. Nxe8 {[%clk 0:01:18.3]} 29... Be5 {[%clk 0:03:20.4]} 30. Rxc5+
{[%clk 0:01:12.9]} 30... Kd7 {[%clk 0:03:19.7]} 31. Bc6+ {[%clk 0:01:00.5]}
31... Ke6 {[%clk 0:03:16.1]} 32. Ng7+ {[%clk 0:00:51.9]} 32... Kf7 {[%clk
0:03:13.2]} 33. Nf5 {[%clk 0:00:39.6]} 33... h4 {[%clk 0:03:11.9]} 34. Nd4
{[%clk 0:00:31.3]} 34... h3 {[%clk 0:03:08.2]} 35. Bd5+ {[%clk 0:00:27.1]} 35...
Kg6 {[%clk 0:03:06.6]} 36. Nf3 {[%clk 0:00:24.4]} 36... Bxb2 {[%clk 0:03:02.8]}
37. Be4+ {[%clk 0:00:20.9]} 37... Kh6 {[%clk 0:03:00.5]} 38. Rc6 {[%clk
0:00:19.6]} 38... Kh5 {[%clk 0:02:54.6]} 39. Bd4 {[%clk 0:00:18.9]} 39... Bxf3
{[%clk 0:02:52.5]} 40. Bxf3+ {[%clk 0:00:17.4]} 40... g4 {[%clk 0:02:50.9]} 41.
Bxb2 {[%clk 0:00:16.2]} 41... gxf3 {[%clk 0:02:50.1]} 42. Rxf6 {[%clk
0:00:15.9]} 42... Kg4 {[%clk 0:02:48.7]} 43. Rg6+ {[%clk 0:00:14.8]} 43... Kf5
{[%clk 0:02:47.5]} 44. Rh6 {[%clk 0:00:14.3]} 44... Kg4 {[%clk 0:02:46.3]} 45.
Kh2 {[%clk 0:00:13.2]} 45... Kg5 {[%clk 0:02:45.3]} 46. Rxh3 {[%clk 0:00:12.8]}
46... Kg4 {[%clk 0:02:44.7]} 47. Rh7 {[%clk 0:00:11.9]} 47... Kf4 {[%clk
0:02:44]} 48. Rxa7 {[%clk 0:00:11.8]} 48... Ke4 {[%clk 0:02:43.4]} 49. Rc7
{[%clk 0:00:11.4]} 49... Kf4 {[%clk 0:02:41.8]} 50. a7 {[%clk 0:00:11.3]} 50...
Ke4 {[%clk 0:02:41.1]} 51. a8=Q+ {[%clk 0:00:11.2]} 51... Kf4 {[%clk 0:02:40.5]}
52. Rf7+ {[%clk 0:00:09.3]} 52... Kg5 {[%clk 0:02:38.7]} 53. Qg8+ {[%clk
0:00:08.4]} 53... Kh6 {[%clk 0:02:37.9]} 54. Rh7# {[%clk 0:00:08.3]} 1-0

[Event "Live Chess"]
[Site "Chess.com"]
[Date "2023.05.20"]
[Round "-"]
[White "therealab0ne"]
[Black "laminaaprod"]
[Result "0-1"]
[WhiteElo "694"]
[BlackElo "2264"]
[TimeControl "300"]
[EndTime "14:52:39 PDT"]
[Termination "laminaaprod won by resignation"]

1. e4 {[%clk 0:04:59.7]} 1... d5 {[%clk 0:04:53.2]} 2. exd5 {[%clk 0:04:58.8]}
2... Qxd5 {[%clk 0:04:52.5]} 3. Nc3 {[%clk 0:04:58.6]} 3... Qd8 {[%clk
0:04:50.9]} 4. d4 {[%clk 0:04:57.5]} 4... Nf6 {[%clk 0:04:50.8]} 5. Nf3 {[%clk
0:04:56.9]} 5... e6 {[%clk 0:04:50.7]} 6. Bg5 {[%clk 0:04:52]} 6... Be7 {[%clk
0:04:50.6]} 7. a4 {[%clk 0:04:26.9]} 7... h6 {[%clk 0:04:48.4]} 8. Bxf6 {[%clk
0:04:22.2]} 8... Bxf6 {[%clk 0:04:42.5]} 9. d5 {[%clk 0:04:19]} 9... Bxc3+
{[%clk 0:04:35.4]} 10. bxc3 {[%clk 0:04:14.7]} 10... exd5 {[%clk 0:04:34.6]} 11.
Ne5 {[%clk 0:04:01.1]} 11... O-O {[%clk 0:04:30.5]} 12. c4 {[%clk 0:03:54.4]}
12... Re8 {[%clk 0:04:21.8]} 13. f4 {[%clk 0:03:45.3]} 13... f6 {[%clk
0:04:17.5]} 14. cxd5 {[%clk 0:03:40.6]} 14... fxe5 {[%clk 0:04:16.4]} 15. fxe5
{[%clk 0:03:39.4]} 15... Rxe5+ {[%clk 0:04:15.7]} 16. Be2 {[%clk 0:03:38.8]}
16... Qh4+ {[%clk 0:04:00.8]} 17. g3 {[%clk 0:03:23.5]} 17... Qe4 {[%clk
0:03:55.1]} 18. Rg1 {[%clk 0:03:12]} 18... Bg4 {[%clk 0:03:47.4]} 19. Rg2 {[%clk
0:03:10.6]} 19... Qxg2 {[%clk 0:03:38]} 0-1

[Event "Live Chess"]
[Site "Chess.com"]
[Date "2023.05.20"]
[Round "-"]
[White "Inglaterra"]
[Black "ExIsambard"]
[Result "1-0"]
[WhiteElo "2049"]
[BlackElo "1966"]
[TimeControl "300"]
[EndTime "14:52:54 PDT"]
[Termination "Inglaterra won by resignation"]

1. d4 {[%clk 0:04:58.6]} 1... Nf6 {[%clk 0:04:59.1]} 2. Nf3 {[%clk 0:04:56]}
2... d5 {[%clk 0:04:57.7]} 3. e3 {[%clk 0:04:54.7]} 3... c6 {[%clk 0:04:57.3]}
4. Bd3 {[%clk 0:04:53.5]} 4... e6 {[%clk 0:04:57]} 5. O-O {[%clk 0:04:52.6]}
5... Bd6 {[%clk 0:04:52.8]} 6. Nbd2 {[%clk 0:04:51.4]} 6... b6 {[%clk
0:04:52.1]} 7. e4 {[%clk 0:04:49.4]} 7... dxe4 {[%clk 0:04:50.9]} 8. Nxe4 {[%clk
0:04:49.3]} 8... Nxe4 {[%clk 0:04:49.8]} 9. Bxe4 {[%clk 0:04:49.2]} 9... Bb7
{[%clk 0:04:49.3]} 10. c3 {[%clk 0:04:39.5]} 10... Nd7 {[%clk 0:04:47.9]} 11.
Bg5 {[%clk 0:04:32.4]} 11... Qc7 {[%clk 0:04:46.3]} 12. Qe2 {[%clk 0:04:28.2]}
12... O-O {[%clk 0:04:41.9]} 13. Bc2 {[%clk 0:04:23.2]} 13... Rae8 {[%clk
0:04:37.9]} 14. Rfe1 {[%clk 0:04:16.7]} 14... c5 {[%clk 0:04:34.2]} 15. Qd3
{[%clk 0:03:47.6]} 15... f5 {[%clk 0:04:19.1]} 16. Bb3 {[%clk 0:03:19.2]} 16...
Be4 {[%clk 0:03:56.4]} 17. Rxe4 {[%clk 0:03:10.6]} 17... fxe4 {[%clk 0:03:52.6]}
18. Qxe4 {[%clk 0:03:10.5]} 18... c4 {[%clk 0:03:48.1]} 19. Bc2 {[%clk
0:03:06.3]} 19... g6 {[%clk 0:02:58.6]} 20. h4 {[%clk 0:02:53.6]} 20... Nf6
{[%clk 0:02:57.2]} 21. Qe2 {[%clk 0:02:40.4]} 21... Nh5 {[%clk 0:02:49.2]} 22.
Re1 {[%clk 0:02:29.4]} 22... Nf4 {[%clk 0:02:03.4]} 23. Qe4 {[%clk 0:02:19.2]}
23... Nh5 {[%clk 0:01:27.9]} 24. Bh6 {[%clk 0:02:05.5]} 24... Nf6 {[%clk
0:01:15]} 25. Qe2 {[%clk 0:01:59.4]} 25... Rf7 {[%clk 0:01:13.4]} 26. Ng5 {[%clk
0:01:55.8]} 26... Rfe7 {[%clk 0:01:11.5]} 27. Qf3 {[%clk 0:01:52]} 27... Nh5
{[%clk 0:00:35.8]} 28. b3 {[%clk 0:01:42.7]} 28... Nf4 {[%clk 0:00:34]} 29. bxc4
{[%clk 0:01:37.8]} 29... Qxc4 {[%clk 0:00:29.3]} 30. Bb3 {[%clk 0:01:34.8]}
30... Qc8 {[%clk 0:00:14.8]} 31. Ne4 {[%clk 0:01:29.5]} 31... Qd7 {[%clk
0:00:03.6]} 32. Nf6+ {[%clk 0:01:27.3]} 1-0

[Event "Live Chess"]
[Site "Chess.com"]
[Date "2023.05.20"]
[Round "-"]
[White "Richardallis"]
[Black "Ninifu"]
[Result "0-1"]
[WhiteElo "1891"]
[BlackElo "2022"]
[TimeControl "300"]
[EndTime "14:53:08 PDT"]
[Termination "Ninifu won by resignation"]

1. d4 {[%clk 0:04:59]} 1... Nf6 {[%clk 0:04:56.7]} 2. Nf3 {[%clk 0:04:58.3]}
2... g6 {[%clk 0:04:55.6]} 3. Bg5 {[%clk 0:04:57.8]} 3... Bg7 {[%clk 0:04:54.5]}
4. Nbd2 {[%clk 0:04:57.3]} 4... O-O {[%clk 0:04:52.7]} 5. c3 {[%clk 0:04:56]}
5... d6 {[%clk 0:04:49.2]} 6. e4 {[%clk 0:04:54.7]} 6... c5 {[%clk 0:04:48.3]}
7. dxc5 {[%clk 0:04:53.6]} 7... dxc5 {[%clk 0:04:47.3]} 8. Bc4 {[%clk
0:04:53.1]} 8... Nc6 {[%clk 0:04:46]} 9. O-O {[%clk 0:04:51.7]} 9... Nd7 {[%clk
0:04:37]} 10. Qe2 {[%clk 0:04:46.2]} 10... Nde5 {[%clk 0:04:33.7]} 11. Nxe5
{[%clk 0:04:41.9]} 11... Nxe5 {[%clk 0:04:32.1]} 12. Rad1 {[%clk 0:04:41.5]}
12... Qc7 {[%clk 0:04:27.1]} 13. Bf4 {[%clk 0:04:39]} 13... a6 {[%clk 0:04:17]}
14. a4 {[%clk 0:04:37.5]} 14... Qc6 {[%clk 0:04:14.6]} 15. Bxe5 {[%clk 0:04:30]}
15... Bxe5 {[%clk 0:04:12.6]} 16. b3 {[%clk 0:04:28.8]} 16... Bxc3 {[%clk
0:04:01.8]} 17. Bd5 {[%clk 0:04:23.7]} 17... Qc7 {[%clk 0:03:55.8]} 18. f4
{[%clk 0:04:21.8]} 18... Bd4+ {[%clk 0:03:38.4]} 19. Kh1 {[%clk 0:04:19.9]}
19... Rb8 {[%clk 0:03:26.4]} 20. Nf3 {[%clk 0:04:11.5]} 20... Bg7 {[%clk
0:03:25]} 21. Ng5 {[%clk 0:04:08.5]} 21... e6 {[%clk 0:03:16.8]} 22. Bc4 {[%clk
0:04:06.5]} 22... b6 {[%clk 0:03:13.7]} 23. e5 {[%clk 0:04:02.3]} 23... a5
{[%clk 0:02:57.7]} 24. Ne4 {[%clk 0:04:00.4]} 24... Bb7 {[%clk 0:02:54.2]} 25.
Nd6 {[%clk 0:03:59.5]} 25... Ba8 {[%clk 0:02:43.5]} 26. Bd3 {[%clk 0:03:57.2]}
26... Rfd8 {[%clk 0:02:39.4]} 27. Be4 {[%clk 0:03:56.1]} 27... Bxe4 {[%clk
0:02:37.8]} 28. Qxe4 {[%clk 0:03:55.2]} 28... Bf8 {[%clk 0:02:29.5]} 29. Nb5
{[%clk 0:03:52.2]} 29... Qe7 {[%clk 0:02:14.4]} 30. g3 {[%clk 0:03:48.8]} 30...
Rxd1 {[%clk 0:02:13.3]} 31. Rxd1 {[%clk 0:03:47.5]} 31... Rd8 {[%clk 0:02:12.3]}
32. Rd6 {[%clk 0:03:43.8]} 32... Rxd6 {[%clk 0:02:05.5]} 33. exd6 {[%clk
0:03:43.2]} 33... Qd7 {[%clk 0:01:58]} 34. Qd3 {[%clk 0:03:38.2]} 34... Bg7
{[%clk 0:01:47]} 35. Kg1 {[%clk 0:03:32]} 35... Bd4+ {[%clk 0:01:44.1]} 36. Nxd4
{[%clk 0:03:30.8]} 36... Qxd6 {[%clk 0:01:43.4]} 37. Kf2 {[%clk 0:03:28.4]}
37... cxd4 {[%clk 0:01:34.2]} 38. Ke2 {[%clk 0:03:27.4]} 38... Qb4 {[%clk
0:01:31.3]} 39. Qb5 {[%clk 0:03:24.9]} 39... Qc3 {[%clk 0:01:19.8]} 40. Qc4
{[%clk 0:03:23.7]} 40... Qe3+ {[%clk 0:01:17.9]} 41. Kd1 {[%clk 0:03:23.2]}
41... d3 {[%clk 0:01:14.9]} 42. Qc8+ {[%clk 0:03:21.7]} 42... Kg7 {[%clk
0:01:12.7]} 43. Qc3+ {[%clk 0:03:19.4]} 43... Kh6 {[%clk 0:01:08.2]} 44. Qd2
{[%clk 0:03:17.1]} 44... Qg1+ {[%clk 0:01:04.5]} 45. Qe1 {[%clk 0:03:16.3]}
45... Qxh2 {[%clk 0:01:01.4]} 46. Qd2 {[%clk 0:03:13]} 46... Qg1+ {[%clk
0:00:52.3]} 47. Qe1 {[%clk 0:03:11.2]} 47... Qxe1+ {[%clk 0:00:49.9]} 48. Kxe1
{[%clk 0:03:10.2]} 48... Kh5 {[%clk 0:00:49.4]} 49. Kd2 {[%clk 0:03:09.5]} 49...
Kg4 {[%clk 0:00:49]} 50. Kxd3 {[%clk 0:03:09.1]} 50... Kxg3 {[%clk 0:00:47.7]}
51. Kc4 {[%clk 0:03:08.7]} 51... h5 {[%clk 0:00:46.1]} 52. Kb5 {[%clk 0:03:08]}
52... h4 {[%clk 0:00:45.1]} 53. Kxb6 {[%clk 0:03:07.6]} 53... h3 {[%clk
0:00:44.5]} 54. Kxa5 {[%clk 0:03:07.2]} 54... h2 {[%clk 0:00:44]} 55. b4 {[%clk
0:03:06.6]} 55... h1=Q {[%clk 0:00:42.8]} 56. b5 {[%clk 0:03:06.2]} 56... Kxf4
{[%clk 0:00:38.3]} 57. b6 {[%clk 0:03:05]} 57... Qb7 {[%clk 0:00:36.1]} 58. Kb5
{[%clk 0:03:03.7]} 58... Ke5 {[%clk 0:00:33]} 59. a5 {[%clk 0:03:03.1]} 59...
Kd5 {[%clk 0:00:31.3]} 60. a6 {[%clk 0:03:02.5]} 60... Qc6+ {[%clk 0:00:30.4]}
61. Ka5 {[%clk 0:03:01.6]} 61... Qc5+ {[%clk 0:00:29.6]} 62. Ka4 {[%clk
0:03:00.8]} 62... Qxb6 {[%clk 0:00:28.8]} 63. Ka3 {[%clk 0:02:59.1]} 63... Kc4
{[%clk 0:00:26.7]} 64. Ka2 {[%clk 0:02:58]} 64... Kc3 {[%clk 0:00:24.3]} 0-1

[Event "Live Chess"]
[Site "Chess.com"]
[Date "2023.05.20"]
[Round "-"]
[White "wadsy27"]
[Black "Alan_Richardson"]
[Result "1-0"]
[WhiteElo "2560"]
[BlackElo "1674"]
[TimeControl "300"]
[EndTime "14:53:15 PDT"]
[Termination "wadsy27 won by resignation"]

1. c4 {[%clk 0:04:58.4]} 1... Nf6 {[%clk 0:04:56.4]} 2. g3 {[%clk 0:04:56.4]}
2... g6 {[%clk 0:04:54.7]} 3. Bg2 {[%clk 0:04:55.8]} 3... Bg7 {[%clk 0:04:52.9]}
4. Nc3 {[%clk 0:04:55.4]} 4... O-O {[%clk 0:04:50.4]} 5. Nf3 {[%clk 0:04:55]}
5... c6 {[%clk 0:04:48.6]} 6. d3 {[%clk 0:04:54.7]} 6... d5 {[%clk 0:04:46.3]}
7. O-O {[%clk 0:04:52.6]} 7... Nbd7 {[%clk 0:04:35]} 8. Rb1 {[%clk 0:04:45.9]}
8... e5 {[%clk 0:04:21.2]} 9. Bg5 {[%clk 0:04:40.9]} 9... h6 {[%clk 0:04:17.9]}
10. Bxf6 {[%clk 0:04:39.8]} 10... Nxf6 {[%clk 0:03:53.7]} 11. e4 {[%clk
0:04:36.6]} 11... Bg4 {[%clk 0:03:32.2]} 12. h3 {[%clk 0:04:23.9]} 12... Bxf3
{[%clk 0:03:30.3]} 13. Bxf3 {[%clk 0:04:23.1]} 13... dxc4 {[%clk 0:03:23.1]} 14.
dxc4 {[%clk 0:04:22.2]} 14... Qxd1 {[%clk 0:03:21.9]} 15. Rfxd1 {[%clk 0:04:21]}
15... Rad8 {[%clk 0:03:21.3]} 16. c5 {[%clk 0:04:13.8]} 16... Rd4 {[%clk
0:03:09.6]} 17. Ne2 {[%clk 0:04:12.6]} 17... Rd7 {[%clk 0:03:01.2]} 18. Rxd7
{[%clk 0:04:07.5]} 18... Nxd7 {[%clk 0:03:00]} 19. b4 {[%clk 0:04:06.6]} 19...
b6 {[%clk 0:02:47]} 20. Rd1 {[%clk 0:04:04]} 20... Nb8 {[%clk 0:02:23.5]} 21.
Nc1 {[%clk 0:03:58.3]} 21... Re8 {[%clk 0:02:18.7]} 22. Be2 {[%clk 0:03:51]}
22... Kf8 {[%clk 0:02:08.9]} 23. Nb3 {[%clk 0:03:45.6]} 23... Ke7 {[%clk
0:02:06.2]} 24. Bc4 {[%clk 0:03:43.9]} 24... b5 {[%clk 0:01:47.8]} 25. Be2
{[%clk 0:03:31.6]} 25... Rd8 {[%clk 0:01:46.7]} 26. Rxd8 {[%clk 0:03:29.9]}
26... Kxd8 {[%clk 0:01:45]} 27. Na5 {[%clk 0:03:25.9]} 27... Kc7 {[%clk
0:01:41]} 28. Bd1 {[%clk 0:03:22.6]} 28... a6 {[%clk 0:01:34.1]} 29. Bb3 {[%clk
0:03:20.6]} 29... f5 {[%clk 0:01:28]} 30. Bf7 {[%clk 0:03:11.9]} 30... fxe4
{[%clk 0:01:17.9]} 31. Bxg6 {[%clk 0:03:10.5]} 31... Bf6 {[%clk 0:01:10.3]} 32.
h4 {[%clk 0:03:08.4]} 32... e3 {[%clk 0:00:52.4]} 33. fxe3 {[%clk 0:03:01.8]}
33... Nd7 {[%clk 0:00:49.4]} 34. Be4 {[%clk 0:02:59]} 34... Nb8 {[%clk
0:00:47.3]} 35. Kf2 {[%clk 0:02:58]} 35... Kd7 {[%clk 0:00:16.4]} 36. Kf3 {[%clk
0:02:51.2]} 1-0

[Event "Live Chess"]
[Site "Chess.com"]
[Date "2023.05.20"]
[Round "-"]
[White "Long1968"]
[Black "manthanit"]
[Result "1-0"]
[WhiteElo "1208"]
[BlackElo "1015"]
[TimeControl "300"]
[EndTime "14:53:20 PDT"]
[Termination "Long1968 won by checkmate"]

1. e4 {[%clk 0:04:56.8]} 1... Nf6 {[%clk 0:04:55.8]} 2. d3 {[%clk 0:04:52.5]}
2... d5 {[%clk 0:04:51.1]} 3. Nd2 {[%clk 0:04:48.1]} 3... dxe4 {[%clk
0:04:49.8]} 4. dxe4 {[%clk 0:04:46]} 4... e5 {[%clk 0:04:39.9]} 5. Ngf3 {[%clk
0:04:39]} 5... Bb4 {[%clk 0:04:37.6]} 6. Bc4 {[%clk 0:04:30.4]} 6... Nxe4 {[%clk
0:04:34.2]} 7. Qe2 {[%clk 0:04:09.9]} 7... Bxd2+ {[%clk 0:04:25.5]} 8. Nxd2
{[%clk 0:03:42]} 8... Nxd2 {[%clk 0:04:21]} 9. Qxe5+ {[%clk 0:03:36.1]} 9... Qe7
{[%clk 0:04:09.1]} 10. Qxe7+ {[%clk 0:03:27.8]} 10... Kxe7 {[%clk 0:04:08.2]}
11. Bxd2 {[%clk 0:03:25.3]} 11... Re8 {[%clk 0:04:06.3]} 12. O-O-O {[%clk
0:03:06.3]} 12... Kf8 {[%clk 0:04:04.3]} 13. Rhe1 {[%clk 0:02:54.8]} 13... Bg4
{[%clk 0:03:59.2]} 14. Bb4+ {[%clk 0:02:43.1]} 14... Re7 {[%clk 0:03:09.7]} 15.
Rd8# {[%clk 0:02:08.9]} 1-0

[Event "Live Chess"]
[Site "Chess.com"]
[Date "2023.05.20"]
[Round "-"]
[White "Ferrarifan27"]
[Black "Shepherds_Pie"]
[Result "1-0"]
[WhiteElo "2058"]
[BlackElo "1926"]
[TimeControl "300"]
[EndTime "14:53:24 PDT"]
[Termination "Ferrarifan27 won by resignation"]

1. e4 {[%clk 0:04:58.1]} 1... e6 {[%clk 0:04:57.6]} 2. d4 {[%clk 0:04:56.5]}
2... d5 {[%clk 0:04:55.8]} 3. Nc3 {[%clk 0:04:53.8]} 3... Bb4 {[%clk 0:04:29]}
4. e5 {[%clk 0:04:50.8]} 4... c5 {[%clk 0:04:26.8]} 5. a3 {[%clk 0:04:49.4]}
5... Ba5 {[%clk 0:04:23.9]} 6. dxc5 {[%clk 0:04:45]} 6... Bxc3+ {[%clk
0:04:22.4]} 7. bxc3 {[%clk 0:04:44.9]} 7... Ne7 {[%clk 0:04:19.4]} 8. Nf3 {[%clk
0:04:43.1]} 8... Qa5 {[%clk 0:04:16]} 9. Bd2 {[%clk 0:04:39.6]} 9... Qxc5 {[%clk
0:04:14.9]} 10. Bd3 {[%clk 0:04:37]} 10... Qc7 {[%clk 0:04:12.4]} 11. O-O {[%clk
0:04:35.3]} 11... Nbc6 {[%clk 0:04:11.3]} 12. Re1 {[%clk 0:04:33.3]} 12... Bd7
{[%clk 0:04:10.3]} 13. Rb1 {[%clk 0:04:31.4]} 13... Ng6 {[%clk 0:04:07.2]} 14.
Qe2 {[%clk 0:04:30.2]} 14... O-O {[%clk 0:04:04.6]} 15. h4 {[%clk 0:04:28.4]}
15... h5 {[%clk 0:04:00.2]} 16. Bxg6 {[%clk 0:04:19]} 16... fxg6 {[%clk
0:03:58.5]} 17. Qd3 {[%clk 0:04:17.7]} 17... Rxf3 {[%clk 0:03:53.2]} 18. Qxf3
{[%clk 0:04:15.9]} 18... Nxe5 {[%clk 0:03:52.1]} 19. Qg3 {[%clk 0:04:14.5]} 1-0